bitfinex-derivatives/quotes_ETHF0:USTF0_20240925
["timestamp","ask_amount","ask_price","bid_price","bid_amount"]
[1727271960384,3.2078,2613.6,2613.1,9.8264]
[1727271960555,0.95661,2613.5,2613.2,0.3931]
[1727271960748,0.38267,2613.3,2613.2,0.3931]
[1727271961448,0.38267,2613.3,2613.2,0.77579]
[1727271961759,0.38267,2613.3,2613.2,0.3931]
[1727271961948,0.38267,2613.3,2612.7,3.2078]
[1727271961949,6.1478,2613.6,2612.7,3.2078]
[1727271962150,0.38272,2613.0,2612.9,0.38273]
[1727271962351,0.3827,2613.1,2613.0,0.38271]
[1727271962966,0.38268,2613.3,2613.2,0.38269]
[1727271963254,0.38268,2613.3,2613.0,3.8272]
[1727271963255,3.2078,2613.7,2613.0,3.2078]
[1727271963476,0.38264,2613.6,2613.5,0.38264]
[1727271963674,3.2078,2614.0,2613.5,6.0]
[1727271963876,3.2078,2614.0,2613.7,0.38261]
[1727271963877,0.38259,2613.9,2613.7,0.38261]
[1727271964066,3.2078,2614.0,2613.6,0.3911]
[1727271964273,3.2078,2614.0,2613.9,0.38258]
[1727271964461,3.2078,2614.0,2613.6,0.3911]
[1727271964964,3.2078,2614.0,2613.8,0.38259]
[1727271965155,0.3826,2613.8,2613.6,0.3911]
[1727271965354,3.2078,2614.0,2613.7,3.8256]
[1727271965556,0.3826,2613.8,2613.6,0.77371]
[1727271965863,0.38259,2613.9,2613.6,0.77372]
[1727271966257,0.38259,2613.9,2613.7,0.38261]
[1727271966462,0.3826,2613.8,2613.6,0.77372]
[1727271966661,0.38259,2613.9,2613.7,0.38261]
[1727271966960,0.38259,2613.9,2613.6,0.77372]
[1727271967361,0.38259,2613.9,2613.7,0.38261]
[1727271967565,3.2078,2614.0,2613.5,0.7084]
[1727271967761,3.59043,2613.6,2613.5,0.318]
[1727271967955,0.38263,2613.6,2613.5,0.318]
[1727271968866,5.16561,2613.6,2613.5,0.318]
[1727271969162,0.38263,2613.6,2613.5,0.318]
[1727271969356,3.2078,2613.7,2613.6,0.38263]
[1727271969573,3.2078,2614.0,2613.5,0.318]
[1727271969862,0.95647,2613.9,2613.5,0.318]
[1727271970167,0.38263,2613.6,2613.5,0.318]
[1727271970464,2.29579,2613.6,2613.5,0.318]
[1727271970765,15.06219,2613.6,2613.5,0.318]
[1727271971870,0.38275,2612.8,2612.6,0.78197]
[1727271972172,0.38275,2612.8,2612.6,0.3992]
[1727271972372,0.38275,2612.8,2612.6,4.60917]
[1727271972561,0.38274,2612.9,2612.7,0.38276]
[1727271972765,0.38276,2612.8,2612.6,0.78197]
[1727271973067,0.38276,2612.7,2612.6,0.3992]
[1727271973273,0.38275,2612.8,2612.6,0.78197]
[1727271973767,3.2078,2613.2,2612.7,3.8272]
[1727271974065,0.38271,2613.1,2612.8,0.38273]
[1727271974389,3.2078,2613.2,2612.8,0.38273]
[1727271974390,3.2078,2613.2,2613.1,0.3827]
[1727271974684,0.38266,2613.4,2613.2,0.38268]
[1727271974868,4.16434,2613.8,2613.1,0.38269]
[1727271974869,0.38267,2613.3,2613.1,0.38269]
[1727271975064,4.16434,2613.8,2613.0,3.2078]
[1727271975065,0.3827,2613.2,2613.0,3.2078]
[1727271975263,4.16434,2613.8,2612.8,12.48473909]
[1727271975264,0.38267,2613.4,2612.8,12.48473909]
[1727271975561,0.95654,2613.7,2612.7,5.16340339]
[1727271975760,0.38265,2613.5,2613.3,0.38267]
[1727271976064,0.38267,2613.4,2613.1,0.38269]
[1727271976265,0.38267,2613.4,2613.2,0.38268]
[1727271976672,0.38267,2613.4,2613.1,0.38269]
[1727271976969,3.2078,2613.8,2612.7,4.20652339]
[1727271977269,0.95672,2613.3,2612.6,1.39792339]
[1727271977464,3.2078,2613.5,2612.6,1.39792339]
[1727271977465,0.3665,2613.2,2612.6,0.3992]
[1727271977672,0.9568,2613.0,2612.6,0.3992]
[1727271977870,0.9568,2613.0,2612.3,1.38012339]
[1727271977871,3.2078,2612.8,2612.3,1.38012339]
[1727271978090,0.3828,2612.5,2612.3,0.76422]
[1727271978269,4.16471,2612.8,2612.3,0.3814]
[1727271978466,0.38279,2612.5,2612.3,0.76422]
[1727271978775,0.95697,2612.6,2612.2,3.2078]
[1727271978974,0.38282,2612.3,2612.2,3.2078]
[1727271979366,0.38281,2612.4,2612.2,3.2078]
[1727271979774,0.38282,2612.3,2612.2,3.2078]
[1727271980072,0.38278,2612.6,2612.4,0.3828]
[1727271980273,3.2078,2612.8,2612.4,0.3828]
[1727271980274,0.38277,2612.7,2612.4,0.3828]
[1727271980472,3.59056,2612.8,2612.5,0.38278]
[1727271980776,3.59055,2612.8,2612.6,0.38276]
[1727271981067,0.38276,2612.7,2612.5,0.38278]
[1727271982167,3.2078,2612.8,2612.3,12.1629288]
[1727271982369,0.3828,2612.5,2612.3,0.38281]
[1727271983171,0.3828,2612.5,2612.2,3.2078]
[1727271983172,4.1647,2612.8,2612.2,3.2078]
[1727271983375,3.2078,2612.8,2612.2,3.2078]
[1727271983568,0.38281,2612.4,2612.2,3.59063]
[1727271983970,3.3065,2613.2,2611.9,0.99872339]
[1727271983971,3.2078,2612.5,2611.9,0.99872339]
[1727271984174,3.2078,2612.5,2611.8,5.10488508]
[1727271984175,0.38288,2611.9,2611.8,3.6068]
[1727271984377,0.95711,2612.2,2611.8,0.78189]
[1727271984693,0.38288,2612.0,2611.8,0.78189]
[1727271984977,0.38284,2612.2,2611.8,0.399]
[1727271985282,0.4014,2612.4,2611.8,0.399]
[1727271985472,0.38282,2612.3,2611.8,0.399]
[1727271985669,0.38281,2612.4,2612.2,0.38283]
[1727271985870,3.2078,2612.5,2612.4,0.3828]
[1727271986074,0.4014,2612.8,2611.9,12.56067718]
[1727271986075,0.4014,2612.8,2612.3,3.2078]
[1727271986379,0.38277,2612.7,2612.4,3.2078]
[1727271986574,4.16462,2613.0,2612.5,0.38279]
[1727271986575,0.95683,2612.9,2612.5,0.38279]
[1727271987077,0.38278,2612.6,2612.4,3.5906]
[1727271987276,0.38278,2612.6,2612.5,0.38279]
[1727271987773,0.95687,2612.8,2612.5,0.38279]
[1727271988089,0.95687,2612.8,2612.3,0.3997]
[1727271988090,0.38273,2612.9,2612.7,0.38275]
[1727271988671,0.38273,2613.0,2612.8,0.38274]
[1727271988870,0.38273,2612.9,2612.7,0.38275]
[1727271989178,0.38269,2613.2,2613.0,0.38271]
[1727271989396,0.38269,2613.2,2613.0,0.38272]
[1727271989397,0.3827,2613.2,2613.0,0.38272]
[1727271989573,3.59048,2613.3,2613.1,0.3827]
[1727271989767,3.3072,2613.8,2613.2,0.38269]
[1727271989768,0.38266,2613.4,2613.2,0.38269]
[1727271990278,0.3672,2613.8,2613.4,0.38265]
[1727271990582,3.2078,2613.7,2613.4,0.38265]
[1727271990778,0.38263,2613.6,2613.3,4.37869189]
[1727271991179,3.2078,2613.7,2613.4,0.38266]
[1727271991399,0.38262,2613.7,2613.4,3.59045]
[1727271991677,2.94,2614.3,2613.3,3.99602189]
[1727271991678,4.16413,2614.3,2613.3,3.99602189]
[1727271991878,3.2078,2614.3,2613.1,3.93872339]
[1727271992079,0.38261,2613.8,2613.5,0.38264]
[1727271992268,0.38261,2613.8,2613.5,0.78514]
[1727271992474,3.2078,2614.3,2613.5,0.78514]
[1727271992475,0.38259,2613.9,2613.6,0.38262]
[1727271992779,3.2078,2614.0,2613.5,0.4025]
[1727271992976,0.38262,2613.7,2613.5,0.4025]
[1727271993176,3.2078,2614.0,2613.5,0.4025]
[1727271993576,0.38259,2613.9,2613.5,0.4025]
[1727271993970,3.2078,2614.0,2613.7,0.38261]
[1727271995471,3.2078,2614.0,2613.8,0.38259]
[1727271995670,3.59033,2614.3,2613.8,0.38259]
[1727271995871,0.3672,2614.4,2613.7,2.94]
[1727271996072,0.3672,2614.4,2614.0,0.38257]
[1727271996376,0.3672,2614.4,2614.1,0.38255]
[1727271996568,0.38249,2614.6,2614.1,4.16606413]
[1727271996767,0.38251,2614.5,2614.1,7.37386413]
[1727271996967,3.2078,2614.7,2613.8,8.02612063]
[1727271997181,0.38249,2614.6,2614.1,0.38254]
[1727271997473,3.2078,2614.7,2614.2,0.404]
[1727271997677,0.3825,2614.5,2614.2,0.404]
[1727271998079,3.2078,2614.7,2614.2,0.78654]
[1727271998080,0.38249,2614.6,2614.2,0.78654]
[1727271998269,0.38249,2614.6,2614.2,0.404]
[1727271998465,0.38249,2614.6,2614.2,0.78654]
[1727271998673,0.38249,2614.6,2614.2,0.404]
[1727271998875,0.38249,2614.6,2614.2,0.78654]
[1727271999079,3.2078,2614.7,2614.2,0.404]
[1727271999380,0.38249,2614.6,2614.2,0.78654]
[1727271999882,3.2078,2614.7,2614.2,0.404]
[1727272000082,0.38249,2614.6,2614.2,0.404]
[1727272000280,0.38248,2614.6,2614.3,0.38252]
[1727272000672,0.38248,2614.6,2614.2,0.78654]
[1727272000875,3.2078,2614.7,2614.2,0.404]
[1727272001090,3.2078,2614.7,2614.4,0.38251]
[1727272001279,3.2078,2614.7,2614.2,0.404]
[1727272001508,0.75534,2614.9,2614.2,0.404]
[1727272001509,0.38246,2614.8,2614.4,0.3825]
[1727272001674,0.75535,2614.9,2614.5,0.38249]
[1727272001874,0.75535,2614.9,2614.3,4.0634382]
[1727272001875,0.3729,2614.9,2614.3,4.0634382]
[1727272002079,0.95614,2614.8,2614.1,3.2078]
[1727272002279,0.95614,2614.8,2614.0,3.2078]
[1727272002280,4.164,2614.7,2614.0,3.2078]
[1727272002479,2.94,2614.8,2613.7,0.3801]
[1727272002480,3.2078,2614.4,2613.7,0.3801]
[1727272002674,0.38255,2614.2,2613.8,0.38259]
[1727272002869,4.1641,2614.4,2613.7,3.2078]
[1727272003091,4.1641,2614.4,2613.2,4.80518508]
[1727272003092,0.38265,2613.5,2613.2,0.3801]
[1727272003389,3.2078,2613.7,2613.2,0.3801]
[1727272004094,3.2078,2613.7,2613.5,0.38263]
[1727272004288,3.2078,2613.7,2613.5,0.38264]
[1727272004806,3.2078,2613.7,2613.6,0.38263]
[1727272005772,3.2078,2613.7,2613.6,4.20903]
[1727272005982,3.2078,2613.7,2613.3,4.16711968]
[1727272006181,3.2078,2613.7,2613.5,0.38264]
[1727272006582,3.2078,2613.7,2613.2,0.3801]
[1727272006583,3.2078,2613.7,2613.3,12.35965255]
[1727272006787,3.2078,2613.7,2613.6,0.38263]
[1727272007290,3.2078,2613.7,2613.3,12.35965255]
[1727272007585,3.2078,2613.7,2613.0,0.75911]
[1727272007586,0.38266,2613.4,2613.0,0.75911]
[1727272007786,0.38267,2613.3,2613.0,0.3764]
[1727272007977,0.38266,2613.4,2613.0,3.96691]
[1727272008176,0.38265,2613.5,2613.1,0.3827]
[1727272008386,0.38266,2613.4,2613.1,0.3827]
[1727272008594,0.95661,2613.5,2613.0,3.5842]
[1727272008790,0.95665,2613.4,2612.7,3.2078]
[1727272008974,0.95665,2613.4,2612.9,0.38273]
[1727272008975,3.611,2613.4,2612.9,0.38273]
[1727272009489,3.611,2613.4,2612.7,3.2078]
[1727272009678,0.3826,2613.8,2613.0,4.06378321]
[1727272009877,3.59039,2613.9,2613.5,0.38263]
[1727272010286,0.3826,2613.8,2613.5,0.38263]
[1727272010491,3.2078,2613.9,2613.6,0.38263]
[1727272010492,3.59039,2613.9,2613.6,0.38263]
[1727272010677,3.59039,2613.9,2613.2,0.3767]
[1727272010678,3.2078,2613.9,2613.2,1.33341]
[1727272010982,3.2078,2613.9,2613.7,0.3826]
[1727272011777,3.2078,2613.9,2613.8,0.3826]
[1727272012688,3.2078,2613.9,2613.4,7.10443]
[1727272012689,0.4028,2614.4,2614.0,0.38256]
[1727272012890,0.78532,2614.4,2614.1,0.38255]
[1727272013276,0.4028,2614.4,2614.2,0.38253]
[1727272013586,0.4028,2614.4,2613.8,4.34989143]
[1727272013778,0.78532,2614.4,2614.1,0.38255]
[1727272014084,0.4028,2614.4,2614.1,0.38254]
[1727272014282,0.4028,2614.4,2614.2,0.38254]
[1727272014680,3.2078,2614.6,2614.3,0.38252]
[1727272014681,3.59029,2614.6,2614.3,0.38252]
[1727272014884,3.2078,2614.6,2613.9,4.56224]
[1727272015087,3.59029,2614.6,2614.2,0.38253]
[1727272015285,3.2078,2614.6,2614.0,4.21850606]
[1727272015483,3.2078,2614.6,2614.4,0.3825]
[1727272015679,3.2078,2614.6,2614.5,0.3825]
[1727272015886,3.2078,2614.6,2614.0,8.11491606]
[1727272016480,3.2078,2614.6,2614.5,0.3825]
[1727272016883,3.2078,2614.6,2614.0,7.15850606]
[1727272017085,3.2078,2614.6,2614.1,0.38255]
[1727272017086,0.3825,2614.5,2614.1,0.38255]
[1727272017283,0.38252,2614.4,2614.1,0.38255]
[1727272017690,3.2078,2614.6,2614.0,4.21850606]
[1727272017989,0.3825,2614.5,2614.1,0.38254]
[1727272018789,0.38251,2614.4,2614.1,0.38254]
[1727272018989,0.38251,2614.4,2614.1,0.38255]
[1727272019193,0.38253,2614.3,2614.0,4.60106606]
[1727272019394,0.38253,2614.3,2614.0,0.38257]
[1727272019994,0.38253,2614.3,2613.9,0.398]
[1727272019995,0.95625,2614.5,2613.9,0.398]
[1727272020179,3.2078,2614.6,2613.9,0.398]
[1727272020384,3.2078,2614.6,2614.0,7.99459163]
[1727272020585,0.38253,2614.3,2614.1,0.38255]
[1727272020895,0.38252,2614.4,2614.1,0.38255]
[1727272021193,4.16404,2614.6,2614.3,0.38251]
[1727272021194,3.59029,2614.6,2614.3,0.38251]
[1727272021582,3.2078,2614.6,2614.5,0.3825]
[1727272023803,0.75625,2614.8,2614.6,0.38248]
[1727272024100,0.75625,2614.8,2614.3,0.4006]
[1727272024101,0.38247,2614.7,2614.3,0.4006]
[1727272024396,3.5816,2614.8,2614.1,3.2078]
[1727272024586,0.38252,2614.4,2614.2,0.38253]
[1727272024787,0.38249,2614.6,2613.9,1.75505]
[1727272024986,0.38247,2614.7,2614.5,0.38249]
[1727272025191,3.96406,2614.8,2614.6,0.38248]
[1727272025995,3.96406,2614.8,2614.5,0.38249]
[1727272026193,3.5816,2614.8,2614.1,0.95639]
[1727272026499,3.59022,2615.1,2614.9,0.38244]
[1727272026789,3.2078,2615.1,2615.0,0.38242]
[1727272028099,0.38236,2615.5,2614.8,2.94]
[1727272028394,3.5955,2615.7,2615.5,0.38234]
[1727272028395,0.3877,2615.7,2615.5,0.38234]
[1727272028598,3.2078,2616.2,2615.2,6.1478]
[1727272028599,0.38229,2616.0,2615.2,6.1478]
[1727272028798,0.3893,2616.1,2615.3,0.4041]
[1727272028998,0.38231,2615.8,2615.3,0.47649273]
[1727272029320,0.38231,2615.8,2615.4,0.38236]
[1727272029998,3.2078,2615.9,2615.4,0.38236]
[1727272030197,3.5901,2615.9,2615.5,0.38235]
[1727272030397,0.3893,2616.1,2615.3,0.4041]
[1727272030599,0.38231,2615.8,2615.4,0.38235]
[1727272030795,0.38232,2615.7,2615.4,0.38235]
[1727272031002,0.38236,2615.4,2615.3,0.4041]
[1727272031199,0.38236,2615.4,2614.7,0.4022]
[1727272031200,0.95592,2615.5,2614.8,3.6119]
[1727272031401,3.2078,2615.3,2614.8,0.4041]
[1727272031598,0.38242,2615.1,2614.8,0.4041]
[1727272031800,0.38243,2615.0,2614.7,0.78466]
[1727272032198,0.38244,2614.9,2614.7,0.4022]
[1727272032396,0.38242,2615.1,2614.8,0.38245]
[1727272032597,3.2078,2615.3,2614.8,0.38245]
[1727272032803,0.38242,2615.1,2614.8,0.38245]
[1727272033136,0.3893,2615.5,2615.1,0.3824]
[1727272033308,0.3893,2615.5,2615.2,0.38239]
[1727272033498,0.3893,2615.5,2615.1,0.3824]
[1727272033499,0.38238,2615.3,2615.1,0.3824]
[1727272033903,0.3824,2615.2,2615.0,0.38242]
[1727272034508,0.38239,2615.3,2615.1,0.38241]
[1727272034806,0.3824,2615.2,2615.0,0.38241]
[1727272035114,0.3824,2615.2,2614.9,0.3868]
[1727272035115,0.38239,2615.3,2615.1,0.38241]
[1727272035295,0.3893,2615.5,2615.2,0.38238]
[1727272035522,0.38233,2615.7,2615.5,0.38234]
[1727272035704,7.3168,2615.9,2615.6,0.38233]
[1727272035902,0.3906,2616.0,2615.4,2.94]
[1727272036124,0.38226,2616.2,2615.5,1.69648]
[1727272036312,3.2078,2616.4,2615.5,5.9610937]
[1727272036505,3.2078,2616.4,2615.8,3.2078]
[1727272036704,3.2078,2616.4,2615.5,5.0052137]
[1727272037030,0.95566,2616.2,2615.5,0.7406]
[1727272037231,0.95566,2616.2,2615.6,4.00005885]
[1727272037513,0.38229,2616.0,2615.7,0.38232]
[1727272037712,0.38227,2616.1,2615.5,0.7406]
[1727272038007,0.38226,2616.2,2615.9,0.38229]
[1727272038200,4.16339,2616.4,2615.6,4.26404016]
[1727272038201,3.2078,2616.4,2615.6,4.26404016]
[1727272038401,0.38226,2616.2,2615.9,0.38229]
[1727272038701,0.38229,2615.9,2615.7,0.38232]
[1727272038903,1.34613,2616.5,2615.6,15.49005963]
[1727272038904,0.38231,2615.8,2615.6,12.28225963]
[1727272039102,0.38232,2615.7,2615.6,4.26404016]
[1727272039305,0.38232,2615.7,2615.5,0.7406]
[1727272039306,3.2078,2616.1,2615.8,0.3823]
[1727272039500,3.2078,2616.1,2615.5,0.7406]
[1727272039501,3.2078,2616.1,2616.0,0.38228]
[1727272040510,0.3906,2616.5,2616.2,0.38225]
[1727272040511,0.38223,2616.4,2616.2,0.38225]
[1727272040902,0.77281,2616.5,2615.8,4.10225677]
[1727272041111,0.77281,2616.5,2616.3,0.38223]
[1727272041409,0.77281,2616.5,2615.8,4.10225677]
[1727272041410,0.38222,2616.4,2616.2,0.38224]
[1727272042206,0.3906,2616.5,2615.8,12.0456626]
[1727272042512,0.77281,2616.5,2615.8,12.0456626]
[1727272042697,0.3906,2616.5,2615.8,12.0456626]
[1727272042903,0.38222,2616.4,2615.8,12.0456626]
[1727272043102,0.38222,2616.4,2616.1,0.38225]
[1727272043366,0.3906,2616.5,2616.1,0.38225]
[1727272043367,0.38223,2616.3,2616.1,0.38225]
[1727272043633,0.38225,2616.2,2616.0,0.38227]
[1727272043811,0.3906,2616.5,2615.8,12.0456626]
[1727272043812,0.3906,2616.5,2615.8,7.94340583]
[1727272044003,0.3906,2616.5,2615.7,6.1478]
[1727272044004,0.95563,2616.2,2615.7,3.2078]
[1727272044211,0.95563,2616.2,2615.7,0.38232]
[1727272044212,0.3823,2615.9,2615.7,0.38232]
[1727272044401,3.2078,2616.3,2615.5,0.7406]
[1727272044598,3.2078,2616.3,2615.9,0.38229]
[1727272044599,0.38227,2616.1,2615.9,0.38229]
[1727272044801,0.38227,2616.1,2615.5,0.7406]
[1727272044802,3.2078,2616.3,2615.6,11.42157185]
[1727272045013,3.59004,2616.3,2616.1,0.38226]
[1727272045512,3.2078,2616.3,2616.2,0.38225]
[1727272046710,0.77281,2616.5,2616.4,0.38222]
[1727272046919,4.5944,2616.5,2616.3,0.38223]
[1727272047131,0.38222,2616.4,2616.0,3.5802]
[1727272047315,0.38222,2616.4,2616.2,0.38223]
[1727272047515,0.38226,2616.1,2616.0,3.2078]
[1727272047725,0.38229,2616.0,2615.6,0.3778]
[1727272047924,0.38229,2615.9,2615.8,0.3823]
[1727272048122,0.95563,2616.2,2615.8,0.3823]
[1727272048327,3.2078,2616.3,2615.6,0.3778]
[1727272048530,0.38231,2615.8,2615.7,3.2078]
[1727272048716,4.16351,2616.0,2615.3,3.2078]
[1727272049026,4.16351,2616.0,2615.6,0.38232]
[1727272049027,0.38232,2615.7,2615.6,0.38232]
[1727272049221,0.38232,2615.8,2615.7,0.38232]
[1727272049418,0.38231,2615.8,2615.5,0.37]
[1727272049622,0.38231,2615.8,2615.7,0.38232]
[1727272049922,0.3673,2615.9,2615.5,0.37]
[1727272049923,0.3673,2615.9,2615.6,0.38232]
[1727272050123,0.3673,2615.9,2615.5,0.37]
[1727272050430,0.38234,2615.6,2615.5,0.75234]
[1727272051025,0.3673,2615.9,2615.5,0.37]
[1727272051220,0.3673,2615.9,2615.5,8.33525269]
[1727272051221,0.3823,2615.9,2615.5,8.33525269]
[1727272051424,3.59009,2616.0,2615.5,8.33525269]
[1727272051622,0.3747,2616.3,2615.9,3.2078]
[1727272051827,0.3747,2616.3,2616.0,0.38227]
[1727272051828,0.38226,2616.2,2616.0,0.38227]
[1727272052031,0.75694,2616.3,2616.2,0.38225]
[1727272052328,0.75694,2616.3,2615.9,3.2078]
[1727272052329,0.38224,2616.3,2615.9,3.2078]
[1727272052522,4.16333,2616.5,2615.9,3.2078]
[1727272052523,4.16333,2616.5,2616.2,0.38224]
[1727272052831,4.16333,2616.5,2616.0,2.94]
[1727272052832,3.2078,2616.5,2616.0,2.94]
[1727272053033,3.2078,2616.5,2616.4,0.38222]
[1727272053533,3.59,2616.5,2616.3,0.38222]
[1727272053835,0.38223,2616.4,2616.2,0.38224]
[1727272054729,0.38223,2616.4,2616.2,0.38225]
[1727272054924,0.38223,2616.4,2616.3,0.38223]
[1727272055332,3.2078,2616.5,2616.3,0.38223]
[1727272055536,0.38222,2616.4,2616.2,0.38224]
[1727272057238,3.2078,2616.5,2616.3,0.38222]
[1727272057459,0.38223,2616.4,2616.2,0.38224]
[1727272057741,0.38223,2616.4,2616.3,0.38223]
[1727272058440,4.16334,2616.5,2616.0,2.94]
[1727272058643,4.16334,2616.5,2616.1,0.38225]
[1727272058930,0.95555,2616.4,2615.8,3.9934]
[1727272059133,3.2078,2616.5,2616.1,2.94]
[1727272059531,0.38222,2616.4,2616.3,0.38223]
[1727272059735,3.2078,2616.5,2616.3,0.38223]
[1727272059932,3.59002,2616.5,2616.3,0.38223]
[1727272060126,0.38223,2616.3,2616.1,2.94]
[1727272060328,0.38223,2616.3,2616.2,0.38224]
[1727272060529,0.38223,2616.4,2616.2,0.38224]
[1727272060760,3.59001,2616.5,2616.1,2.94]
[1727272061037,3.59001,2616.5,2616.4,0.38222]
[1727272061434,7.41161,2616.5,2616.4,0.38222]
[1727272061630,4.20381,2616.5,2616.3,0.38222]
[1727272061839,0.38221,2616.5,2616.3,0.38222]
[1727272062137,0.38222,2616.4,2616.2,0.77754]
[1727272062539,0.38222,2616.4,2616.3,0.38223]
[1727272062739,3.2078,2616.6,2616.3,0.38223]
[1727272062740,0.38221,2616.5,2616.3,0.38223]
[1727272063338,0.38221,2616.5,2616.2,0.3953]
[1727272063547,0.38222,2616.4,2616.3,0.38223]
[1727272063846,1.33017,2616.7,2616.2,0.3953]
[1727272063847,0.38223,2616.3,2616.2,0.3953]
[1727272064054,0.38223,2616.3,2615.8,0.4033]
[1727272064055,3.2078,2616.6,2615.8,0.7856]
[1727272064253,0.38229,2615.9,2615.8,0.7856]
[1727272064532,0.38226,2616.1,2616.0,0.38228]
[1727272064734,0.38228,2616.0,2615.9,0.38229]
[1727272065135,0.38229,2615.9,2615.8,0.4033]
[1727272065737,0.95572,2616.0,2615.6,3.2078]
[1727272066043,0.3722,2616.2,2615.6,11.11956226]
[1727272066230,0.38228,2616.0,2615.9,0.38228]
[1727272066443,0.3722,2616.2,2615.8,0.3823]
[1727272066638,0.38229,2616.0,2615.8,0.3823]
[1727272067247,0.38227,2616.1,2615.7,2.94]
[1727272067543,3.59005,2616.3,2616.2,0.38225]
[1727272067737,0.38225,2616.2,2616.0,0.38227]
[1727272067938,3.2078,2616.3,2615.8,1.32716]
[1727272068239,0.95547,2616.7,2615.8,1.32716]
[1727272068240,0.95546,2616.7,2616.0,3.8957]
[1727272068439,0.95546,2616.7,2616.3,0.38223]
[1727272068751,0.38221,2616.5,2616.3,0.38223]
[1727272069044,0.95549,2616.6,2616.2,0.38224]
[1727272069340,3.5763,2616.8,2616.1,0.3878]
[1727272069543,3.5763,2616.8,2616.3,0.38223]
[1727272069544,0.38222,2616.4,2616.3,0.38223]
[1727272069747,0.38224,2616.3,2616.2,0.38224]
[1727272069935,0.38225,2616.2,2616.1,0.77006]
[1727272070132,0.38225,2616.2,2616.1,0.3878]
[1727272070333,0.38226,2616.1,2615.8,0.3714]
[1727272070548,0.38228,2616.1,2615.9,0.38228]
[1727272070733,0.38228,2616.1,2615.9,8.38932667]
[1727272070952,3.2078,2616.5,2615.9,8.00704667]
[1727272071149,0.38228,2616.0,2615.9,8.00704667]
[1727272071845,0.38226,2616.2,2616.0,0.38228]
[1727272072041,0.38228,2616.0,2615.9,8.00704667]
[1727272072246,0.38228,2616.0,2615.9,8.38933667]
[1727272072436,1.3262,2616.3,2615.9,8.38933667]
[1727272072641,0.38227,2616.1,2616.0,0.38228]
[1727272072942,1.3262,2616.3,2615.9,8.00704667]
[1727272072943,0.38226,2616.2,2616.1,0.38226]
[1727272073138,4.16335,2616.5,2615.9,8.00704667]
[1727272073139,3.2078,2616.5,2615.9,8.00704667]
[1727272073340,3.2078,2616.5,2616.3,0.38223]
[1727272073341,0.38222,2616.4,2616.3,0.38223]
[1727272073950,3.2078,2616.5,2616.2,0.38224]
[1727272074437,0.38223,2616.4,2616.2,0.38224]
[1727272075144,4.16333,2616.5,2616.1,0.38225]
[1727272075452,0.38224,2616.3,2616.1,0.38225]
[1727272075646,0.38224,2616.3,2616.2,0.38225]
[1727272076247,4.16333,2616.5,2616.0,2.94]
[1727272076454,0.95559,2616.3,2616.0,0.38227]
[1727272076643,0.38225,2616.3,2615.8,3.5792]
[1727272076952,0.38223,2616.4,2616.0,2.94]
[1727272077146,3.2078,2616.5,2616.0,3.8957]
[1727272077355,0.3706,2616.7,2616.1,0.95566]
[1727272077556,1.32606,2616.7,2616.2,3.2078]
[1727272077752,0.38222,2616.4,2616.3,0.38223]
[1727272078243,0.38226,2616.1,2616.0,0.38227]
[1727272078444,0.38226,2616.1,2615.9,0.38228]
[1727272078647,0.38226,2616.1,2616.0,8.39872075]
[1727272078844,0.38226,2616.1,2615.8,3.5792]
[1727272078845,4.16337,2616.4,2615.9,8.01644075]
[1727272079042,0.38225,2616.3,2616.1,0.38226]
[1727272079251,0.38225,2616.3,2616.1,0.38225]
[1727272079444,3.2078,2616.4,2616.3,0.38223]
[1727272079843,0.75279,2616.7,2616.1,0.95566]
[1727272080059,2.97653701,2617.1,2616.6,2.94]
[1727272080256,3.2078,2617.2,2616.7,0.7666]
[1727272080257,0.38213,2617.0,2616.7,0.7666]
[1727272080447,0.38214,2617.0,2616.7,1.14877]
[1727272080789,3.6095,2617.2,2616.7,1.14877]
[1727272080790,3.2078,2617.2,2616.8,2.39]
[1727272080965,3.2078,2617.2,2617.1,2.39]
[1727272081254,3.2078,2617.2,2617.1,2.77212]
[1727272081454,3.2078,2617.2,2617.1,2.39]
[1727272082448,3.2078,2617.2,2616.9,3.32214]
[1727272082645,3.2078,2617.2,2616.9,2.94]
[1727272082847,3.2078,2617.2,2617.1,0.38212]
[1727272083881,0.3804,2617.8,2617.5,0.38205]
[1727272083882,3.2078,2617.8,2617.5,0.38205]
[1727272084272,3.2078,2617.8,2617.7,0.38203]
[1727272084457,3.2078,2617.8,2617.2,4.58542339]
[1727272084663,3.2078,2617.8,2617.3,11.90571846]
[1727272084847,3.2078,2617.8,2617.4,0.77946]
[1727272085048,3.2078,2617.8,2617.4,0.3974]
[1727272085257,3.2078,2617.8,2617.2,0.3789]
[1727272085258,0.38206,2617.5,2617.2,0.3789]
[1727272085469,0.38206,2617.5,2617.2,0.761]
[1727272085756,0.38208,2617.4,2617.2,0.3789]
[1727272085950,3.2078,2617.5,2617.2,0.3789]
[1727272086145,0.38208,2617.4,2617.2,0.3789]
[1727272086354,3.2078,2617.5,2617.0,0.3974]
[1727272086547,0.38211,2617.2,2617.0,0.3974]
[1727272086781,3.2078,2617.5,2616.8,0.76105]
[1727272086782,0.38212,2617.1,2616.8,0.76105]
[1727272086967,4.56158,2617.5,2616.9,0.38214]
[1727272087358,0.38212,2617.1,2616.9,0.38214]
[1727272087658,0.95519,2617.4,2616.9,0.38215]